bitfinex-derivatives/quotes_BTCF0:USTF0_20250930
["timestamp","ask_amount","ask_price","bid_price","bid_amount"]
[1759260809418,3.10606587,114190.0,114180.0,0.95582664]
[1759260809715,2.6948322,114190.0,114180.0,0.95582664]
[1759260809915,3.10606587,114190.0,114180.0,0.95582664]
[1759260810112,3.10606587,114190.0,114180.0,0.50746614]
[1759260810318,2.6948322,114190.0,114180.0,0.09623247]
[1759260810719,2.6948322,114190.0,114180.0,0.03416]
[1759260810916,3.0556322,114190.0,114180.0,0.03416]
[1759260811220,3.0556322,114190.0,114180.0,0.1217217]
[1759260811516,3.0556322,114190.0,114180.0,0.01294]
[1759260811712,3.0551522,114190.0,114180.0,0.16257417]
[1759260811912,3.0550322,114190.0,114180.0,0.07501247]
[1759260812619,3.0550322,114190.0,114180.0,0.1005017]
[1759260813218,3.0550322,114190.0,114180.0,0.07501247]
[1759260813421,3.95482026,114190.0,114180.0,0.07501247]
[1759260813716,3.95482026,114190.0,114180.0,0.01294]
[1759260814217,3.95450026,114190.0,114180.0,0.1005017]
[1759260814606,3.95450026,114190.0,114180.0,0.01294]
[1759260815719,1.34854026,114190.0,114180.0,0.01294]
[1759260815912,3.95378026,114190.0,114180.0,0.01294]
[1759260816114,1.34854026,114190.0,114180.0,0.07501247]
[1759260816409,1.34854026,114190.0,114180.0,0.16257417]
[1759260816410,3.95358026,114190.0,114180.0,0.16257417]
[1759260816607,1.34854026,114190.0,114180.0,0.16257417]
[1759260816820,3.95350026,114190.0,114180.0,0.16257417]
[1759260817220,1.34854026,114190.0,114180.0,0.16257417]
[1759260817522,3.95330026,114190.0,114180.0,0.16257417]
[1759260818822,3.95330026,114190.0,114180.0,0.07501247]
[1759260819323,3.95290026,114190.0,114180.0,0.16257417]
[1759260819620,3.55290026,114190.0,114180.0,0.16257417]
[1759260820222,0.94854026,114190.0,114180.0,0.16257417]
[1759260820420,3.55238026,114190.0,114180.0,0.16257417]
[1759260820822,0.43451699,114190.0,114180.0,0.16257417]
[1759260821121,3.55218026,114190.0,114180.0,0.16257417]
[1759260821617,3.95218026,114190.0,114180.0,0.06207247]
[1759260821816,0.0875617,114180.0,114170.0,0.23203915]
[1759260822017,0.60158497,114180.0,114170.0,0.16996668]
[1759260822218,0.0875617,114180.0,114170.0,0.16996668]
[1759260822414,2.6909617,114180.0,114170.0,0.16996668]
[1759260823025,2.6909617,114180.0,114170.0,0.10054015]
[1759260823227,0.0875617,114180.0,114170.0,0.10054015]
[1759260823421,2.6909617,114180.0,114170.0,0.12176015]
[1759260824126,2.6909617,114180.0,114170.0,0.10054015]
[1759260826428,0.4483617,114180.0,114170.0,0.01297145]
[1759260826623,3.0506817,114180.0,114170.0,0.01297145]
[1759260826823,3.0506817,114180.0,114170.0,0.07504392]
[1759260827129,0.4483617,114180.0,114170.0,0.16261332]
[1759260827329,3.0504817,114180.0,114170.0,0.18383332]
[1759260828430,3.0504817,114180.0,114170.0,0.16261332]
[1759260828826,3.48314206,114180.0,114170.0,0.07504392]
[1759260829026,0.88102206,114180.0,114170.0,0.07504392]
[1759260829325,3.48246206,114180.0,114170.0,0.07504392]
[1759260829524,0.43412537,114180.0,114170.0,0.07504392]
[1759260829726,3.48238206,114180.0,114170.0,0.07504392]
[1759260830027,3.88238206,114180.0,114170.0,0.07504392]
[1759260830228,1.65696555,114180.0,114170.0,0.07504392]
[1759260830418,3.84670546,114180.0,114170.0,0.07504392]
[1759260830825,3.84670546,114180.0,114170.0,0.01297145]
[1759260831028,4.25812555,114180.0,114170.0,0.01297145]
[1759260831330,1.65696555,114180.0,114170.0,0.01297145]
[1759260831531,4.25772555,114180.0,114170.0,0.01297145]
[1759260832326,4.25772555,114180.0,114170.0,6.145e-05]
[1759260832730,4.25744555,114180.0,114170.0,6.145e-05]
[1759260833529,1.65696555,114180.0,114170.0,6.145e-05]
[1759260833736,4.25736555,114180.0,114170.0,6.145e-05]
[1759260833938,1.65696555,114180.0,114170.0,6.145e-05]
[1759260834236,4.25704555,114180.0,114170.0,6.145e-05]
[1759260835125,4.25712555,114180.0,114170.0,6.145e-05]
[1759260835538,0.0875771,114160.0,114150.0,0.07501247]
[1759260835742,0.0875771,114160.0,114150.0,0.03612]
[1759260835743,2.63611719,114160.0,114150.0,0.03612]
[1759260836035,3.46003719,114160.0,114150.0,0.03612]
[1759260836433,3.45999719,114160.0,114150.0,0.01294]
[1759260836632,3.04855855,114160.0,114150.0,0.03612]
[1759260836833,0.85985864,114160.0,114150.0,0.03612]
[1759260837029,3.46001864,114160.0,114150.0,0.01294]
[1759260837832,0.85985864,114160.0,114150.0,0.01294]
[1759260838033,3.45977864,114160.0,114150.0,0.01294]
[1759260838337,0.0875846,114150.0,114140.0,0.01294]
[1759260838525,0.85980469,114150.0,114140.0,0.01294]
[1759260839740,3.45932469,114150.0,114140.0,0.03612]
[1759260840435,3.0477046,114150.0,114140.0,0.1237123]
[1759260840633,3.45912469,114150.0,114140.0,0.03612]
[1759260842043,3.87054478,114150.0,114140.0,0.01294]
[1759260844040,3.87959689,114150.0,114140.0,0.01294]
[1759260844234,1.27122478,114150.0,114140.0,0.01294]
[1759260844636,3.87026478,114150.0,114140.0,0.01294]
[1759260848342,0.0875923,114140.0,114130.0,0.01336]
[1759260848542,0.85981239,114140.0,114130.0,0.01336]
[1759260850744,3.45801239,114140.0,114130.0,0.01336]
[1759260852032,3.45769239,114140.0,114130.0,0.01336]
[1759260852950,0.85981239,114140.0,114130.0,0.01336]
[1759260853246,3.45745239,114140.0,114130.0,0.01336]
[1759260853446,3.45745239,114140.0,114130.0,0.00033]
[1759260854244,0.85981239,114140.0,114130.0,0.00033]
[1759260854437,3.45745239,114140.0,114130.0,0.00033]
[1759260854643,0.4483923,114140.0,114130.0,0.01303]
[1759260854843,3.45721239,114140.0,114130.0,0.01303]
[1759260855841,0.85981239,114140.0,114130.0,0.01303]
[1759260856045,3.45797239,114140.0,114130.0,0.01303]
[1759260856642,0.0875999,114130.0,114120.0,0.01303]
[1759260856836,0.85988144,114130.0,114120.0,0.01303]
[1759260857243,1.28041207,114130.0,114120.0,0.01303]
[1759260857440,1.28041207,114130.0,114110.0,0.01303]
[1759260857643,0.0876153,114110.0,114100.0,0.01314086]
[1759260857840,0.84559052,114110.0,114100.0,0.01314086]
[1759260859645,3.44331052,114110.0,114100.0,0.01314086]
[1759260861050,3.84331052,114110.0,114100.0,0.00011086]
[1759260861245,1.24559052,114110.0,114100.0,0.00011086]
[1759260861450,3.84299052,114110.0,114100.0,0.00011086]
[1759260861653,1.24559052,114110.0,114100.0,0.00011086]
[1759260862148,0.0876228,114100.0,114090.0,0.01186893]
[1759260862356,0.0876305,114090.0,114080.0,0.37471]
[1759260862550,0.91047068,114090.0,114080.0,0.37471]
[1759260862851,3.09621059,114090.0,114080.0,0.37471]
[1759260863049,3.50763068,114090.0,114080.0,0.37471]
[1759260863248,3.09629227,114090.0,114080.0,0.37471]
[1759260863454,3.50771236,114090.0,114080.0,0.37471]
[1759260863850,3.50771236,114090.0,114080.0,0.01391]
[1759260864655,3.86851236,114090.0,114080.0,0.01391]
[1759260865247,1.27135236,114090.0,114080.0,0.03569]
[1759260865453,3.45673227,114090.0,114080.0,0.03569]
[1759260865759,3.45669227,114090.0,114080.0,0.03569]
[1759260866250,3.45669227,114090.0,114080.0,0.01391]
[1759260866452,3.45657227,114090.0,114080.0,0.01391]
[1759260867855,0.85993227,114090.0,114080.0,0.1233281]
[1759260868055,0.44891218,114090.0,114080.0,0.1233281]
[1759260868250,3.04531218,114090.0,114080.0,0.1233281]
[1759260868653,3.45673227,114090.0,114080.0,0.03569]
[1759260869560,0.86033227,114090.0,114080.0,0.03569]
[1759260869956,0.86033227,114090.0,114080.0,0.1233282]
[1759260870356,3.45633227,114090.0,114080.0,0.03569]
[1759260870559,3.45593227,114090.0,114080.0,0.03569]
[1759260870756,3.45633227,114090.0,114080.0,0.03569]
[1759260871157,3.45637227,114090.0,114080.0,0.03569]
[1759260871858,0.86033227,114090.0,114080.0,0.03569]
[1759260872061,3.45645227,114090.0,114080.0,0.03569]
[1759260872260,0.86033227,114090.0,114080.0,0.03569]
[1759260872462,3.45621227,114090.0,114080.0,0.03569]
[1759260873265,3.45633227,114090.0,114080.0,0.1233282]
[1759260873755,3.44208454,114090.0,114080.0,0.1233282]
[1759260874262,3.44208454,114090.0,114080.0,0.03569]
[1759260877664,3.44208454,114090.0,114080.0,0.1233282]
[1759260878265,0.84608454,114090.0,114080.0,0.1233282]
[1759260878466,3.44124454,114090.0,114080.0,0.1233282]
[1759260878970,3.44124454,114090.0,114080.0,0.03569]
[1759260879767,3.44124454,114090.0,114080.0,0.1233283]
[1759260880562,1.77812168,114090.0,114080.0,1.29554839]
[1759260880869,2.59612168,114090.0,114080.0,1.35762086]
[1759260881069,8.168e-05,114090.0,114080.0,1.29554839]
[1759260881365,0.08842,114110.0,114100.0,0.1233129]
[1759260881561,0.77222009,114120.0,114110.0,0.1233052]
[1759260881562,1.77764,114120.0,114110.0,0.1233052]
[1759260881761,2.683848,114120.0,114110.0,0.90477657]
[1759260881969,2.683928,114120.0,114110.0,0.49335648]
[1759260882358,0.08807186,114120.0,114110.0,0.49335648]
[1759260882566,2.68411136,114120.0,114110.0,0.90477657]
[1759260882763,2.68451136,114120.0,114110.0,0.90477657]
[1759260883370,2.68411136,114120.0,114110.0,0.90477657]
[1759260883573,0.0004,114120.0,114110.0,0.89335648]
[1759260883770,2.59672,114120.0,114110.0,0.89335648]
[1759260883972,2.5964,114120.0,114110.0,0.89335648]
[1759260884173,2.596,114120.0,114110.0,0.89335648]
[1759260884374,3.00808374,114120.0,114110.0,1.30504022]
[1759260884769,0.0004,114120.0,114110.0,1.36731619]
[1759260885177,0.81864,114120.0,114110.0,1.36731619]
[1759260885370,0.81824,114120.0,114110.0,1.36731619]
[1759260885576,0.81864,114120.0,114110.0,1.36731619]
[1759260886475,0.0004,114120.0,114110.0,1.36731619]
[1759260886671,0.81816,114120.0,114110.0,1.79447434]
[1759260887178,0.0884001,114130.0,114110.0,1.79447434]
[1759260887179,0.0876001,114130.0,114120.0,0.1223076]
[1759260887375,0.9055201,114130.0,114120.0,1.36866688]
[1759260887576,0.86088094,114140.0,114130.0,0.1222999]
[1759260887772,3.45596094,114140.0,114130.0,0.53398364]
[1759260888077,3.45516094,114140.0,114130.0,0.53398364]
[1759260888279,3.45556094,114140.0,114130.0,0.44638374]
[1759260888482,3.45556094,114140.0,114130.0,0.0347]
[1759260888777,3.45556094,114140.0,114130.0,0.44638374]
[1759260889677,3.45556094,114140.0,114130.0,0.0347]
[1759260889873,3.45556094,114140.0,114130.0,0.44638374]
[1759260890178,3.09516094,114140.0,114130.0,0.44638374]
[1759260892077,3.09516094,114140.0,114130.0,0.0347]
[1759260892274,3.09516094,114140.0,114130.0,0.44638374]
[1759260892580,3.09516094,114140.0,114130.0,0.0347]
[1759260893083,3.09516094,114140.0,114130.0,0.44638374]
[1759260895082,3.09516094,114140.0,114130.0,0.53398374]
[1759260895778,0.49968094,114140.0,114130.0,0.53398374]
[1759260895975,3.09364094,114140.0,114130.0,0.53398374]
[1759260896279,3.09352094,114140.0,114130.0,0.53398374]
[1759260896484,2.27676094,114140.0,114130.0,0.89478374]
[1759260896776,0.0004,114140.0,114130.0,0.89478374]
[1759260896977,0.0004,114140.0,114130.0,1.70646748]
[1759260897178,2.63714564,114160.0,114150.0,0.1222846]
[1759260897374,2.63714564,114160.0,114150.0,0.44638374]
[1759260897375,3.45362564,114160.0,114150.0,0.44638374]
[1759260897679,3.09282564,114160.0,114150.0,0.53396834]
[1759260897875,0.0879819,114160.0,114150.0,0.89476834]
[1759260898078,0.0875819,114160.0,114150.0,1.29476834]
[1759260898478,2.27629764,114170.0,114160.0,0.1222767]
[1759260898675,2.94813764,114170.0,114160.0,0.80718374]
[1759260898884,2.94733764,114170.0,114160.0,0.80718374]
[1759260899084,2.94773764,114170.0,114160.0,0.80718374]
[1759260899584,2.94773764,114170.0,114160.0,0.44638374]
[1759260901186,2.94773764,114170.0,114160.0,0.45546273]
[1759260901583,2.94773764,114170.0,114160.0,0.04377899]
[1759260901779,2.94773764,114170.0,114160.0,0.0347]
[1759260901979,3.75942138,114170.0,114160.0,0.01361]
[1759260902276,0.0875769,114160.0,114150.0,0.01361]
[1759260902483,0.0875846,114150.0,114140.0,0.01361]
[1759260902683,1.72735208,114150.0,114140.0,0.01361]
[1759260902884,2.12735208,114150.0,114140.0,0.01361]
[1759260903083,1.71566834,114150.0,114140.0,0.01361]
[1759260903284,2.12735208,114150.0,114140.0,0.01361]
[1759260903682,2.13985208,114150.0,114140.0,0.01361]
[1759260905879,2.50065208,114150.0,114140.0,0.01361]
[1759260906091,1.6772846,114150.0,114140.0,0.01361]
[1759260906285,4.27693208,114150.0,114140.0,0.01361]
[1759260906490,3.86524834,114150.0,114140.0,0.01361]
[1759260906878,0.87256834,114150.0,114140.0,0.1222923]
[1759260907086,0.1004846,114150.0,114140.0,1.30645978]
[1759260907390,0.82866,114150.0,114140.0,1.70645978]
[1759260907589,0.82826,114150.0,114140.0,1.70645978]
[1759260907786,0.82866,114150.0,114140.0,1.70645978]
[1759260908391,0.0129,114150.0,114140.0,1.70645978]
[1759260908594,0.82842,114150.0,114140.0,1.76865158]
[1759260909080,0.0129,114150.0,114140.0,1.76865158]
[1759260909285,0.82826,114150.0,114140.0,1.76865158]
[1759260909589,0.50006574,114160.0,114150.0,0.1222845]
[1759260909784,1.31534574,114160.0,114150.0,0.89476824]
[1759260909990,1.31534574,114160.0,114150.0,0.80718374]
[1759260910292,1.31534574,114160.0,114150.0,0.86937554]
[1759260910494,1.31522574,114160.0,114150.0,0.86937554]
[1759260910699,2.89939322,114160.0,114150.0,0.01361]
[1759260910894,0.0875845,114150.0,114140.0,0.37441]
[1759260911093,0.49926824,114150.0,114140.0,0.37441]
[1759260911396,0.49926824,114150.0,114140.0,0.3955]
[1759260911892,0.49926824,114150.0,114140.0,0.37441]
[1759260912597,0.49926824,114150.0,114140.0,0.3955]
[1759260912898,0.49926824,114150.0,114140.0,0.37441]
[1759260913398,0.86006824,114150.0,114140.0,0.01361]
[1759260913999,3.45166824,114150.0,114140.0,0.01361]
[1759260915995,3.09038824,114150.0,114140.0,0.1012022]
[1759260916199,0.49926824,114150.0,114140.0,0.01361]
[1759260916500,3.09038824,114150.0,114140.0,0.0347]
[1759260916692,0.49926824,114150.0,114140.0,0.1222922]
[1759260916893,0.0875845,114150.0,114140.0,1.36865148]
[1759260917100,0.9017445,114150.0,114140.0,1.36865148]
[1759260917398,2.27602654,114160.0,114150.0,0.1239245]
[1759260917598,3.50263028,114160.0,114150.0,0.18621774]
[1759260917793,3.50183028,114160.0,114150.0,0.18621774]
[1759260917993,3.09054654,114160.0,114150.0,0.18621774]
[1759260918298,3.09054654,114160.0,114150.0,0.1239245]
[1759260918494,3.09042654,114160.0,114150.0,0.59790148]
[1759260918992,1.31338654,114160.0,114150.0,0.59790148]
[1759260919193,1.31338654,114160.0,114150.0,0.53560824]
[1759260919398,1.31338654,114160.0,114150.0,0.1239245]
[1759260919698,1.31338654,114160.0,114150.0,0.53560824]
[1759260920891,1.31338654,114160.0,114150.0,0.44802374]
[1759260921994,0.0879828,114160.0,114150.0,0.95870148]
[1759260922202,1.29850829,114160.0,114150.0,0.95870148]
[1759260923097,1.29850829,114160.0,114150.0,0.59790148]
[1759260923408,1.29850829,114160.0,114150.0,0.09863324]
[1759260923409,1.71019203,114160.0,114150.0,0.09863324]
[1759260924001,1.71019203,114160.0,114150.0,0.18621774]
[1759260925398,1.29850829,114160.0,114150.0,0.18621774]
[1759260925597,1.29850829,114160.0,114150.0,0.59790148]
[1759260925795,0.88682455,114160.0,114150.0,0.59790148]
[1759260925995,1.29850829,114160.0,114150.0,0.59790148]
[1759260926302,0.48542829,114160.0,114150.0,0.59790148]
[1759260926508,1.29842829,114160.0,114150.0,0.95870148]
[1759260926698,0.07334455,114160.0,114150.0,1.35870148]
[1759260926897,0.9009768,114160.0,114150.0,1.29640824]
[1759260927095,0.9005768,114160.0,114150.0,0.96247488]
[1759260927297,1.31266054,114160.0,114150.0,0.96247488]
[1759260927603,1.31266054,114160.0,114150.0,1.29640824]
[1759260928500,1.31266054,114160.0,114150.0,0.8847245]
[1759260928804,1.31266054,114160.0,114150.0,1.35868572]
[1759260929705,0.9009768,114160.0,114150.0,1.35868572]
[1759260929905,1.31266054,114160.0,114150.0,1.35868572]
[1759260930105,1.31266054,114160.0,114150.0,1.29640824]
[1759260930605,0.49966054,114160.0,114150.0,1.29640824]
[1759260930802,1.31262054,114160.0,114150.0,1.29640824]
[1759260931003,1.31262054,114160.0,114150.0,1.20882374]
[1759260931204,0.49966054,114160.0,114150.0,1.29640824]
[1759260931503,1.31262054,114160.0,114150.0,1.29640824]
[1759260934298,0.49966054,114160.0,114150.0,1.29640824]
[1759260934497,1.31258054,114160.0,114150.0,1.29640824]
[1759260934805,1.31258054,114160.0,114150.0,0.8847245]
[1759260935001,1.31258054,114160.0,114150.0,1.29640824]
[1759260935305,0.49966054,114160.0,114150.0,1.29640824]
[1759260935497,1.31258054,114160.0,114150.0,1.29640824]
[1759260935697,0.0879768,114160.0,114150.0,1.29640824]
[1759260935897,0.9008968,114160.0,114150.0,1.29640824]
[1759260936104,0.0879768,114160.0,114150.0,1.29640824]
[1759260936300,0.9008968,114160.0,114150.0,1.29640824]
[1759260936504,0.0737389,114160.0,114150.0,1.37415862]
[1759260936900,1.29834264,114160.0,114150.0,0.87489038]
[1759260937105,1.71002638,114160.0,114150.0,0.47489038]
[1759260937300,1.71002638,114160.0,114150.0,0.88657412]
[1759260937505,0.89710638,114160.0,114150.0,0.88657412]
[1759260937804,1.29830264,114160.0,114150.0,0.97415862]
[1759260938303,0.48542264,114160.0,114150.0,0.97415862]
[1759260938502,1.29830264,114160.0,114150.0,0.89640824]
[1759260938894,1.29830264,114160.0,114150.0,0.4847245]
[1759260939100,1.29830264,114160.0,114150.0,0.89640824]
[1759260939499,1.29830264,114160.0,114150.0,0.80882374]
[1759260939699,1.29790264,114160.0,114150.0,0.80882374]
[1759260939900,1.29830264,114160.0,114150.0,0.89640824]
[1759260940102,1.29830264,114160.0,114150.0,0.97415862]
[1759260940301,0.48542264,114160.0,114150.0,0.97415862]
[1759260940501,1.29790264,114160.0,114150.0,0.97415862]
[1759260940702,0.0733389,114160.0,114150.0,0.97415862]
[1759260940906,0.8866189,114160.0,114150.0,0.97415862]
[1759260941205,0.8866189,114160.0,114150.0,0.17637804]
[1759260941206,2.48247012,114160.0,114150.0,0.17637804]
[1759260941398,2.88247012,114160.0,114150.0,0.15333082]
[1759260941598,2.88247012,114160.0,114150.0,0.01327]
[1759260941807,2.07078638,114160.0,114150.0,0.01327]
[1759260942705,2.48247012,114160.0,114150.0,0.01327]
[1759260943010,0.0875844,114150.0,114140.0,0.07592044]
[1759260943211,0.91095188,114150.0,114140.0,0.07592044]
[1759260943706,0.91095188,114150.0,114140.0,0.09752044]
[1759260944502,0.0875844,114150.0,114140.0,0.18511254]
[1759260944710,0.49926814,114150.0,114140.0,0.59679628]
[1759260944907,3.08874814,114150.0,114140.0,0.95759628]
[1759260945203,0.0879844,114150.0,114140.0,0.95759628]
[1759260945506,0.84662264,114160.0,114150.0,0.0875844]
[1759260945507,0.49926594,114160.0,114150.0,0.0875844]
[1759260945712,1.8641699,114170.0,114160.0,0.03443]
[1759260945913,0.49925364,114170.0,114160.0,0.50841403]
[1759260946209,0.9004499,114170.0,114160.0,0.03443]
[1759260946411,1.31219705,114170.0,114160.0,0.09673671]
[1759260947210,0.0879699,114170.0,114160.0,0.54511341]
[1759260947411,0.0879699,114170.0,114160.0,0.95646056]
[1759260947412,0.9008499,114170.0,114160.0,0.95646056]
[1759260947611,0.9004499,114170.0,114160.0,0.95646056]
[1759260948214,0.9008499,114170.0,114160.0,0.95646056]
[1759260948614,0.88661257,114170.0,114160.0,0.97190423]
[1759260948814,0.88657257,114170.0,114160.0,0.97190423]
[1759260949820,0.88657257,114170.0,114160.0,0.56055708]
[1759260950317,0.88657257,114170.0,114160.0,0.97190423]
[1759260952820,0.88653257,114170.0,114160.0,0.97190423]
[1759260953522,11.10688,114230.0,114160.0,1.59222413]
[1759260953711,0.4864364,114240.0,114230.0,0.02249]
[1759260953913,0.9383964,114240.0,114230.0,0.43383715]
[1759260954212,0.83531,114240.0,114230.0,0.53470005]
[1759260954421,0.83571,114240.0,114230.0,0.95777211]
[1759260954614,0.83531,114240.0,114230.0,0.95777211]
[1759260954821,0.84968,114240.0,114230.0,0.96701718]
[1759260955016,0.84928,114240.0,114230.0,0.96701718]
[1759260955213,0.84968,114240.0,114230.0,0.90474512]
[1759260955715,0.84968,114240.0,114230.0,0.89550005]
[1759260956219,0.84968,114240.0,114230.0,0.97686858]
[1759260957220,0.84968,114240.0,114230.0,1.04699371]
[1759260957422,0.84968,114240.0,114230.0,0.60069615]
[1759260958227,0.9371953,114240.0,114230.0,0.58735615]
[1759260958716,2.7130353,114240.0,114230.0,0.58735615]
[1759260959223,2.7130353,114240.0,114230.0,1.01811499]
[1759260959417,2.7129953,114240.0,114230.0,1.01811499]
[1759260960024,2.7128753,114240.0,114230.0,1.01811499]
[1759260960425,0.03692,114240.0,114230.0,1.03145499]
[1759260960723,0.65671,114240.0,114230.0,1.07787311]
[1759260961223,0.65631,114240.0,114230.0,1.03145499]
[1759260961430,0.65671,114240.0,114230.0,1.03145499]
[1759260962829,0.9368353,114240.0,114230.0,1.03145499]
[1759260963024,0.9368353,114240.0,114230.0,1.01811499]
[1759260963522,0.9368353,114240.0,114230.0,0.93059209]
[1759260963728,0.9368353,114240.0,114230.0,0.21101753]
[1759260964222,0.9368353,114240.0,114230.0,0.18013813]
[1759260964825,0.9368353,114240.0,114230.0,0.09261513]
[1759260965126,2.7123953,114240.0,114230.0,0.09261513]
[1759260965323,0.1244353,114240.0,114230.0,0.53891269]
[1759260965529,2.7123953,114240.0,114230.0,0.53891269]
[1759260966227,0.1244353,114240.0,114230.0,0.53891269]
[1759260966426,0.1104653,114240.0,114230.0,1.00057559]
[1759260966627,2.54707,114240.0,114230.0,1.00057559]
[1759260966827,0.9227453,114240.0,114230.0,1.00057559]
[1759260967026,0.1100653,114240.0,114230.0,1.00057559]
[1759260967223,0.02295,114240.0,114230.0,1.00057559]
[1759260967522,0.02255,114240.0,114230.0,1.00057559]
[1759260967726,0.02255,114240.0,114230.0,0.91305269]
[1759260967727,0.9227053,114240.0,114230.0,0.91305269]
[1759260967930,0.9366753,114240.0,114230.0,0.91305269]
[1759260968128,0.02295,114240.0,114230.0,1.00057559]
[1759260968328,0.7817853,114240.0,114230.0,1.00057559]
[1759260968531,0.1104653,114240.0,114230.0,1.00057559]
[1759260968731,0.9227053,114240.0,114230.0,1.00057559]
[1759260969326,0.1104653,114240.0,114230.0,1.00057559]
[1759260969524,0.1104653,114240.0,114230.0,0.55427803]
[1759260969723,0.9119853,114240.0,114230.0,1.00057559]
[1759260971426,0.9226653,114240.0,114230.0,1.00057559]
[1759260972033,0.9226253,114240.0,114230.0,1.00057559]
[1759260972738,0.9226253,114240.0,114230.0,1.03145499]
[1759260973634,0.9226253,114240.0,114230.0,0.94393209]
[1759260973837,0.9226253,114240.0,114230.0,1.03145509]
[1759260974032,0.9365953,114240.0,114230.0,0.48429453]
[1759260974338,0.1244353,114240.0,114230.0,0.58515743]
[1759260974530,0.1100653,114240.0,114230.0,1.03145499]
[1759260974731,0.9043053,114240.0,114230.0,1.03145499]
[1759260975743,0.9225453,114240.0,114230.0,1.03145499]
[1759260976245,0.9225453,114240.0,114230.0,1.04231827]
[1759260976539,0.1100653,114240.0,114230.0,1.01143887]
[1759260976847,0.02335,114250.0,114240.0,0.1233453]
[1759260977048,0.8995476,114250.0,114240.0,1.35194696]
[1759260977345,0.0004,114250.0,114240.0,1.30563074]
[1759260977547,0.0004,114250.0,114240.0,1.3679028]
[1759260977846,0.81244,114250.0,114240.0,1.3679028]
[1759260978146,1.8979344,114270.0,114260.0,0.12295]
[1759260978444,1.8979344,114270.0,114260.0,0.94083874]
[1759260978445,2.7099744,114270.0,114260.0,0.94083874]
[1759260978636,0.9346144,114270.0,114260.0,0.94083874]
[1759260978839,0.1230144,114270.0,114260.0,0.94083874]
[1759260979041,0.9206423,114270.0,114260.0,0.94083874]
[1759260979240,0.9210423,114270.0,114260.0,0.94083874]
[1759260980253,0.9210423,114270.0,114260.0,0.97610938]
[1759260981251,0.9210423,114270.0,114260.0,0.92976336]
[1759260982544,0.9340623,114270.0,114260.0,0.38258]
[1759260982848,0.9340623,114270.0,114260.0,0.4700797]
[1759260983250,0.9340623,114270.0,114260.0,0.44485206]
[1759260984151,0.9340623,114270.0,114260.0,0.53235176]
[1759260984655,0.9340623,114270.0,114260.0,0.54602176]
[1759260984950,0.9338623,114270.0,114260.0,0.54602176]
[1759260985848,0.9338623,114270.0,114260.0,0.45852206]
[1759260986048,0.9338623,114270.0,114260.0,0.44485206]
[1759260986247,0.1098397,114260.0,114250.0,0.54602696]
[1759260986447,0.9215997,114260.0,114250.0,0.99204032]
[1759260986749,0.02234,114260.0,114250.0,0.92976826]
[1759260986951,0.1102391,114270.0,114260.0,0.1229497]
[1759260987251,0.5709991,114270.0,114260.0,0.99177246]
[1759260987550,0.1102391,114270.0,114260.0,0.99177246]
[1759260987752,0.9219591,114270.0,114260.0,0.99177246]
[1759260988144,0.9668591,114270.0,114260.0,0.99177246]
[1759260988447,0.9798791,114270.0,114260.0,0.0620094]
[1759260988647,0.1228597,114260.0,114250.0,0.4445894]
[1759260988951,0.1228597,114260.0,114250.0,0.44458887]
[1759260989347,0.1228597,114260.0,114250.0,0.45825887]
[1759260989544,0.1228597,114260.0,114250.0,0.44458887]
[1759260990348,0.1098397,114260.0,114250.0,0.54576657]
[1759260990554,0.1228597,114260.0,114250.0,0.54576657]
[1759260990744,0.9344997,114260.0,114250.0,0.44458887]
[1759260991951,0.9344597,114260.0,114250.0,0.53209617]
[1759260992151,0.9344597,114260.0,114250.0,0.44458887]
[1759260992346,0.1228597,114260.0,114250.0,0.53209617]
[1759260992550,0.9344597,114260.0,114250.0,0.53209617]
[1759260992745,0.1228597,114260.0,114250.0,0.53209617]
[1759260992955,0.1228597,114260.0,114250.0,0.99177953]
[1759260993147,0.9344197,114260.0,114250.0,0.99177953]
[1759260994253,0.1228597,114260.0,114250.0,0.99177953]
[1759260994450,0.1098397,114260.0,114250.0,0.99177953]
[1759260994650,0.9213997,114260.0,114250.0,0.99177953]
[1759260994850,0.9217997,114260.0,114250.0,0.99177953]
[1759260995056,0.1102397,114260.0,114250.0,0.99177953]
[1759260995254,0.9217997,114260.0,114250.0,0.54576617]
[1759260995862,0.9217997,114260.0,114250.0,0.99177953]
[1759260996049,0.9217597,114260.0,114250.0,0.99177953]
[1759260996556,0.1102397,114260.0,114250.0,0.99177953]
[1759260997150,0.9217597,114260.0,114250.0,0.99177953]
[1759260999956,0.9217597,114260.0,114250.0,0.54576617]
[1759261000159,0.9217597,114260.0,114250.0,0.99177953]
[1759261000359,0.9217597,114260.0,114250.0,0.4837573]
[1759261000559,0.83422,114260.0,114250.0,0.89437225]
[1759261000860,0.0004,114260.0,114250.0,0.89437225]
[1759261001059,0.81144,114260.0,114250.0,1.29437225]
[1759261001247,0.81184,114260.0,114250.0,1.37212263]
[1759261001446,0.8118,114260.0,114250.0,1.37212263]
[1759261001646,0.0004,114260.0,114250.0,1.37212263]
[1759261001851,0.8118,114260.0,114250.0,0.56150768]
[1759261002051,0.8118,114260.0,114250.0,0.97212263]
[1759261002453,0.8118,114260.0,114250.0,0.97198006]
[1759261002656,0.0004,114260.0,114250.0,0.97198006]
[1759261003053,0.44684,114260.0,114250.0,0.97198006]
[1759261003864,0.0004,114260.0,114250.0,0.97198006]
[1759261004062,0.0004,114260.0,114250.0,1.37198006]
[1759261004063,0.81176,114260.0,114250.0,1.37198006]
[1759261005460,0.0004,114260.0,114250.0,1.37198006]
[1759261005661,0.81172,114260.0,114250.0,1.37198006]
[1759261005963,0.0004,114260.0,114250.0,1.37198006]
[1759261006162,0.81172,114260.0,114250.0,1.37198006]
[1759261006663,0.81168,114260.0,114250.0,1.37198006]
[1759261008362,0.0004,114260.0,114250.0,1.70479002]
[1759261008558,0.45076,114260.0,114250.0,2.11530638]
[1759261008762,0.45116,114260.0,114250.0,1.70479002]
[1759261009961,0.45116,114260.0,114250.0,0.4837573]
[1759261009962,0.5607997,114260.0,114250.0,0.4837573]
[1759261010164,0.5744997,114260.0,114250.0,0.97199856]
[1759261010460,0.487,114260.0,114250.0,0.97199856]
[1759261010663,0.4733,114260.0,114250.0,0.97199856]
[1759261010863,0.5607997,114260.0,114250.0,1.38251492]
[1759261011063,0.02254,114260.0,114250.0,1.38251492]
[1759261011362,0.0004,114260.0,114250.0,1.38251492]
[1759261011562,0.40624,114260.0,114250.0,1.38251492]
[1759261011861,0.81156,114260.0,114250.0,1.38251492]
[1759261012257,0.8990597,114260.0,114250.0,1.38251492]
[1759261012761,0.81156,114260.0,114250.0,1.38251492]
[1759261013857,0.81152,114260.0,114250.0,1.38251492]
[1759261014368,0.81148,114260.0,114250.0,1.38251492]
[1759261014955,0.81148,114260.0,114250.0,1.78251492]
[1759261014956,0.0004,114260.0,114250.0,1.78251492]
[1759261015155,0.154532,114270.0,114260.0,0.1216297]
[1759261015462,0.966372,114270.0,114260.0,1.38118732]